Workbook

Sheet Main Worksheet
D1: Profit & Tax Projection - Companies | M1: Client Name | T1: HIDE
D2: =CONCATENATE("Year Ended ",TEXT(T9, "dd mmmm yyyy")) -> Year Ended 30 June 2018 | M2: Preparer Name | T2: HIDE
D6: PROJECTED PROFIT & TAXABLE INCOME | S6: Instructions | T6: Start of Year | W6: Rolling Forward
S7: When calculating net profit/(loss) for the period, either use the part-year profit shown in accounts prepared by your client and make the relevant adjustments OR use the part-year profit in accounts prepared by your practice. You can change or delete all existing descriptions as they are provided for quick data entry purposes only. Click on the sort icons to sort each list in alphabetical order. The descriptions shown in the "Adjustments" section are those that might typically be found in accounts prepared by your client. You can select one of three options for projecting profit for the remaining period. You can annualise the part year profit, enter details of projected income and expenses in the projection worksheet for transfer to the main sheet or simply enter totals for projected income and expenses in the main sheet. | T7: =EOMONTH(T9,-12)+1 -> 2017-07-01 | W7: Tax law changes | Z7: Done2018
D8: Net Profit/(Loss) | K8: Taxable Income | T8: End of Year | W8: Year Ended | Z8: 2018-06-30
T9: =Z8 -> 2018-06-30 | W9: Base rate entity turnover | Z9: $25m
D10: Period Commencing | E10: 2017-07-01 | K10: Projected Annual Profit/(Loss) Brought Forward | O10: =E44 -> 0 | T10: Days in Year | W10: Update tax rates below | Z10: Done2018
D11: Period Ending | E11: 2017-12-31 | T11: =T9-T7+1 -> 365
D12: Source of Profit Figure for the Period | E12: Select | K12: Add (if not included in accounts) | T12: Days to Project
K13: Capital Gains | T13: =T9-E11+1 -> 182
D14: =IF(E12="Client","Net Profit/(Loss) for the Period Per Client",IF(E12="Accountant","Net Profit/(Loss) for the Period Per Accountant","Net Profit/(Loss) for the Period")) -> Net Profit/(Loss) for the Period | K14: Closing Debtors (for accrual accounting taxpayers)
K15: Closing Stock
D16: Deduct/(Add) Income Adjustments | K16: FBT Contribution
D17: GST Refunds | K17: Opening Creditors
D18: Loans Received - Other | K18: Profit on Sale of Plant & Equipment
D19: Loans Received - Owner(s)
D20: Tax Refund
D27: Total Income Adjustments | E27: =SUM(E17:E26) -> 0 | K27: Total Amounts Added to Taxable Income | O27: =SUM(O13:O26) -> 0
D28: Sub-Total | E28: =E14-E27 -> 0 | K28: Sub-Total | O28: =O10+O27 -> 0
D30: Add/(Deduct) Expense Adjustments | K30: Deduct (if not included in accounts)
D31: Assets Acquired | K31: Closing Creditors
D32: GST Payments | K32: Depreciation
D33: Hire Purchase Repayments | K33: Hire Purchase Charges
D34: Income Tax Payments | K34: Interest
D35: Loan Repayments | K35: Loss on Sale of Plant & Equipment
D36: Loans to Owner(s) | K36: Opening Debtors (for accrual accounting taxpayers)
D37: Private Expenses | K37: Opening Stock
K38: Tax Losses Deducted
D41: Total Expense Adjustments | E41: =SUM(E31:E40) -> 0 | T41: Projected
D42: Net Profit/(Loss) for the Period after Adjustments | E42: =E28+E41 -> 0 | T42: Profit
D43: Add Projected Profit/(Loss) for the Remaining Period | E43: =IF(T44=1,E48,IF(T44=2,E49,E53)) -> 0 | T43: Method
D44: Projected Annual Profit/(Loss) Carried Forward | E44: =E42+E43 -> 0 | K44: Total Amounts Deducted from Taxable Income | O44: =SUM(O31:O43) -> 0 | T44: 1
K45: Projected Taxable Income/(Loss) | O45: =O28-O44 -> 0
K46: Times Tax Rate | M46: Base Rate Entity | O46: =IF(U46=TRUE,CompaniesSBE,Companies) -> 0.3 | S46: Company Tax Rate | T46: Base rate entity? | U46: FALSE
D47: Method Used to Project Profit/(Loss) for the Remaining Period | K47: Tax on Projected Taxable Income | L47: SBE | O47: =IF(O45>0,O45*O46,0) -> 0 | S47: =CONCATENATE("A base rate entity is a company that has an aggregated turnover of less than ",Z9," and carries on a business.") -> A base rate entity is a company that has an aggregated turnover of less than $25m and carries on a business.
D48: Annualise Part-Year Profit | E48: =E42/(E11-E10+1)*T13 -> 0 | T48: Taxpayer Types
D49: Transfer from Worksheet | E49: ='Projection Worksheet'!D52 -> 0 | K49: Less PAYG Instalments: | M49: =EOMONTH(T9,-9) -> 2017-09-30 | T49: Resident
D50: Summary as Shown Below | M50: =EOMONTH(M49,3) -> 2017-12-31 | T50: Non-Resident
D51: Projected Income | M51: =EOMONTH(M50,3) -> 2018-03-31 | T51: Non-Taxable
D52: Less Projected Expenses | M52: =EOMONTH(M51,3) -> 2018-06-30 | O52: =SUM(N49:N52) -> 0
D53: Projected Profit | E53: =E51-E52 -> 0 | K53: Tax Payable/(Refundable) Before Tax Planning | O53: =O47-O52 -> 0
D55: ESTIMATE OF TAX PAYABLE WITH TAX PLANNING | T55: Tax Rates
S56: Tax Planning | T56: Residents 2018
E57: Taxpayer | F57: Residents Situation | J57: Taxable | K57: Other | L57: Taxable | M57: Tax on | N57: Less Tax | O57: Tax on | S57: Use this section to record and calculate the tax effect of an alternative strategy to paying company tax on the projected taxable income above this year. Show various alternatives in the Taxable Income column. Any balance remaining will be automatically calculated in the last row of the table and taxed at the company rate. | T57: 0 | U57: 18200 | V57: 0 | W57: 0 | Y57: Situation | AD57: Add to Tax Payable
D58: Alternative Allocation of Company Profit | E58: Type | F58: F | G58: P | H58: S | I58: H | J58: Income | K58: Income | L58: Income | M58: Taxable Inc | N58: on Other Inc | O58: Allocated Inc | T58: =U57+1 -> 18201 | U58: 37000 | V58: 0 | W58: 0.19 | Y58: Married | Z58: Pensioner | AA58: Mcare Surch | AB58: HELP | AD58: Mcare Thres | AE58: Taxable Income | AI58: Other Income
D59: Additional deductible superannuation contributions by this company | L59: =J59 -> 0 | M59: =J59*SuperFunds -> 0 | O59: =M59 -> 0 | T59: =U58+1 -> 37001 | U59: 87000 | V59: 3572 | W59: 0.325 | AE59: Mcare Levy | AF59: Mcare Surch | AG59: HELP | AH59: Total | AI59: Mcare Levy | AJ59: Mcare Surch | AK59: HELP | AL59: Total
D60: Low rate director 1 fees / bonus / wage | L60: =J60+K60 -> 0 | M60: =IF(L60>0,IF(AND(E60="Resident",L60>ResidentTaxFree),VLOOKUP(L60,Residents,3,TRUE)+(L60-VLOOKUP(L60,Residents,1,TRUE))*(VLOOKUP(L60,Residents,4,TRUE)),0)-IF(AND(E60="Resident",L60>ResidentTaxFree,L60<LitoLow+1),LitoOffset,0)-IF(AND(E60="Resident",L60>ResidentTaxFree,L60>LitoLow,L60<LitoHigh),LitoOffset-((L60-LitoLow)*LitoPhaseOut),0)+IF(E60="Non-Resident",VLOOKUP(L60,NonResidents,3,TRUE)+(L60-VLOOKUP(L60,NonResidents,1,TRUE))*(VLOOKUP(L60,NonResidents,4,TRUE)),0),0)+IF(E60="Resident",AH60,0) -> 0 | N60: =IF(K60>0,IF(AND(E60="Resident",K60>ResidentTaxFree),VLOOKUP(K60,Residents,3,TRUE)+(K60-VLOOKUP(K60,Residents,1,TRUE))*(VLOOKUP(K60,Residents,4,TRUE)),0)-IF(AND(E60="Resident",K60>ResidentTaxFree,K60<LitoLow+1),LitoOffset,0)-IF(AND(E60="Resident",K60>ResidentTaxFree,K60>LitoLow,K60<LitoHigh),LitoOffset-((K60-LitoLow)*LitoPhaseOut),0)+IF(E60="Non-Resident",VLOOKUP(K60,NonResidents,3,TRUE)+(K60-VLOOKUP(K60,NonResidents,1,TRUE))*(VLOOKUP(K60,NonResidents,4,TRUE)),0),0)+IF(E60="Resident",AL60,0) -> 0 | O60: =M60-N60 -> 0 | P60: =IF(O60>(J60*$O$46),"W","") ->  | T60: =U59+1 -> 87001 | U60: 180000 | V60: 19822 | W60: 0.37 | Y60: FALSE | Z60: FALSE | AA60: FALSE | AB60: FALSE | AD60: =IF(AND(Y60=TRUE,Z60=TRUE),MedicareThreshPensionerFamily,0)+IF(AND(Y60=TRUE,Z60=FALSE),MedicareThresFamilies,0)+IF(AND(Y60=FALSE,Z60=TRUE),MedicareThreshPensionerSingle,0)+IF(AND(Y60=FALSE,Z60=FALSE),MedicareThreshSingle,0) -> 21655 | AE60: =IF(L60>AD60,L60*MedicareRate,0) -> 0 | AF60: =IF(AA60=TRUE,L60*MedicareSurchargeRate,0) -> 0 | AG60: =IF(AB60=TRUE,L60*VLOOKUP(L60,Help,4,TRUE),0) -> 0 | AH60: =SUM(AE60:AG60) -> 0 | AI60: =IF(K60>AD60,K60*MedicareRate,0) -> 0 | AJ60: =IF(AA60=TRUE,K60*MedicareSurchargeRate,0) -> 0 | AK60: =IF(AB60=TRUE,K60*VLOOKUP(K60,Help,4,TRUE),0) -> 0 | AL60: =SUM(AI60:AK60) -> 0
D61: Low rate director 2 fees / bonus / wage | L61: =J61+K61 -> 0 | M61: 0 | N61: 0 | O61: 0 | P61: =IF(O61>(J61*$O$46),"W","") ->  | T61: =U60+1 -> 180001 | V61: 54232 | W61: 0.45 | Y61: FALSE | Z61: FALSE | AA61: FALSE | AB61: FALSE | AD61: 21655 | AE61: 0 | AF61: 0 | AG61: 0 | AH61: =SUM(AE61:AG61) -> 0 | AI61: 0 | AJ61: 0 | AK61: 0 | AL61: =SUM(AI61:AK61) -> 0
D62: Service/Consulting fee to loss company | L62: 0 | M62: 0 | N62: 0 | O62: 0 | T62: Low Income Tax Offset (residents only) for 2018 | Y62: FALSE | Z62: FALSE | AA62: FALSE | AB62: FALSE | AD62: 21655 | AE62: 0 | AF62: 0 | AG62: 0 | AH62: 0 | AI62: 0 | AJ62: 0 | AK62: 0 | AL62: 0
L63: =J63+K63 -> 0 | M63: 0 | N63: 0 | O63: 0 | T63: Offset Amount | W63: 445 | Y63: FALSE | Z63: FALSE | AA63: FALSE | AB63: FALSE | AD63: 21655 | AE63: 0 | AF63: 0 | AG63: 0 | AH63: 0 | AI63: 0 | AJ63: 0 | AK63: 0 | AL63: 0
L64: 0 | M64: 0 | N64: 0 | O64: 0 | T64: Tax free with LITO | W64: =U57+(LitoOffset/W58) -> 20542.10526 | Y64: FALSE | Z64: FALSE | AA64: FALSE | AB64: FALSE | AD64: 21655 | AE64: 0 | AF64: 0 | AG64: 0 | AH64: 0 | AI64: 0 | AJ64: 0 | AK64: 0 | AL64: 0
L65: 0 | M65: 0 | N65: 0 | O65: 0 | T65: Full Offset | W65: 37000 | Y65: FALSE | Z65: FALSE | AA65: FALSE | AB65: FALSE | AD65: 21655 | AE65: 0 | AF65: 0 | AG65: 0 | AH65: 0 | AI65: 0 | AJ65: 0 | AK65: 0 | AL65: 0
L66: 0 | M66: 0 | N66: 0 | O66: 0 | T66: No Offset | W66: 66667 | Y66: FALSE | Z66: FALSE | AA66: FALSE | AB66: FALSE | AD66: 21655 | AE66: 0 | AF66: 0 | AG66: 0 | AH66: 0 | AI66: 0 | AJ66: 0 | AK66: 0 | AL66: 0
L67: 0 | M67: 0 | N67: 0 | O67: 0 | S67: Tax Calculations | T67: Phase-out Rate | W67: 0.015 | Y67: FALSE | Z67: FALSE | AA67: FALSE | AB67: FALSE | AD67: 21655 | AE67: 0 | AF67: 0 | AG67: 0 | AH67: 0 | AI67: 0 | AJ67: 0 | AK67: 0 | AL67: 0
L68: 0 | M68: 0 | N68: 0 | O68: 0 | S68: You can account for any part of the allocated taxable income which will have a zero tax rate by selecting "Non-Taxable" as the taxpayer type. | T68: Non-Residents 2018 | Y68: FALSE | Z68: FALSE | AA68: FALSE | AB68: FALSE | AD68: 21655 | AE68: 0 | AF68: 0 | AG68: 0 | AH68: 0 | AI68: 0 | AJ68: 0 | AK68: 0 | AL68: 0
L69: 0 | M69: 0 | N69: 0 | O69: 0 | T69: 0 | U69: 87000 | V69: 0 | W69: 0.325 | Y69: FALSE | Z69: FALSE | AA69: FALSE | AB69: FALSE | AD69: 21655 | AE69: 0 | AF69: 0 | AG69: 0 | AH69: 0 | AI69: 0 | AJ69: 0 | AK69: 0 | AL69: 0
D70: Projected company taxable income after tax planning (the bal) | J70: =O45-SUM(J59:J69) -> 0 | L70: =J70 -> 0 | M70: =L70*O46 -> 0 | O70: 0 | T70: =U69+1 -> 87001 | U70: 180000 | V70: 28275 | W70: 0.37
I71: Projected Taxable Income to Deal With | J71: =SUM(J59:J70) -> 0 | N71: Total Tax Payable With Tax Planning | O71: =SUM(O59:O70) -> 0 | T71: =U70+1 -> 180001 | V71: 62685 | W71: 0.45
N72: Less PAYG Instalments | O72: =O52 -> 0
D73: Situation Options - Applies to Resident Type Only | F73: =IF(J70<0,"Error: Total Income Allocated Exceeds Taxable Income","") ->  | N73: Overall Tax Payable/(Refundable) After Tax Planning | O73: =O71-O72 -> 0 | T73: Companies 2018
D74: F - Family for Medicare P - Senior Australian/Pensioner for Medicare | T74: Standard (full) rate | W74: 0.3
D75: S - Medicare Levy Surcharge Applied H - Help/TSL Debt Repayment | N75: Tax Saved or Deferred by Tax Planning | O75: =O53-O73 -> 0 | T75: Base rate entity | W75: 0.275
O76: =IF(OR(P60="w",P61="w",P62="w",P63="w",P64="w",P65="w",P66="w",P67="w",P68="w",P69="w"),"W = Warning: the tax payable on one or more allocations of income exceeds the company rate","") ->  | T76: Superannuation Funds 2018
D77: NOTE: Personal income tax calculations include the standard tax-free threshold with allowance for the low income, but no other, tax offset. Tax also includes Medicare levy and surcharge where applicable, the latter using the tier 3 rate of the levy, and without increased thresholds for children where applicable. Repayments on any HELP/TSL debt where applicable uses taxable income and not Repayment Income. Medicare levy is calculated at the full rate for singles, families or pensioners as applicable from the lower threshold (i.e. no shade-in calculations are made). | T77: Flat rate for all superannuation funds | W77: 0.15
T81: Medicare 2018 (from PAYG withholding schedule)
T82: Levy rate | W82: 0.02
T83: Threshold - single | W83: 21655
T84: Threshold - families | W84: 36541
T85: Threshold - single pensioner | W85: 34244
T86: Threshold - family pensioner | W86: 47670
T87: Medicare Surcharge 2018
T88: Surcharge rate using Tier 3 | W88: 0.015
T89: HELP & TLS Repayments 2018
T90: 0 | U90: 55873 | W90: 0
T91: =U90+1 -> 55874 | U91: 62238 | W91: 0.04
T92: =U91+1 -> 62239 | U92: 68602 | W92: 0.045
T93: 68603 | U93: 72207 | W93: 0.05
T94: 72208 | U94: 77618 | W94: 0.055
T95: 77619 | U95: 84062 | W95: 0.06
T96: 84063 | U96: 88486 | W96: 0.065
T97: 88487 | U97: 97377 | W97: 0.07
T98: 97378 | U98: 103765 | W98: 0.075
T99: 103766 | U99: 10000000 | W99: 0.08
T100: =U99+1 -> 10000001 | U100: 20000000

Sheet Projection Worksheet
C2: =CONCATENATE("Income & Expense Projections ","for ",'Main Worksheet'!M1) -> Income & Expense Projections for Client Name
C3: =CONCATENATE("For the Period from ",TEXT('Main Worksheet'!$E$11+1, "dd mmm yyyy")," to ",TEXT('Main Worksheet'!$T$9, "dd mmm yyyy")) -> For the Period from 01 Jan 2018 to 30 Jun 2018
G5: Instructions
C6: Income | G6: You can change or delete all existing descriptions as they are provided for quick data entry purposes only. The sort icons will sort each list in alphabetical order.
C7: Contracting
C8: Professional Fees
C9: Sales
C13: Total Income | D13: =SUBTOTAL(109,Income[Column1]) -> 0
C18: Less Expenses
C19: Accounting
C20: Advertising
C21: Bank Charges
C22: Computer Software & Supplies
C23: Donations
C24: Electricity & Gas
C25: Freight & Cartage
C26: Hire of Plant & Equipment
C27: Insurance
C28: Interest
C29: Lease Payments
C30: Materials & Supplies
C31: Motor Vehicle Expenses
C32: Postage
C33: Printing & Stationery
C34: Purchases
C35: Rates & Land Taxes
C36: Rent
C37: Repairs & Maintenance
C38: Salaries & Wages
C39: Subcontractors
C40: Subscriptions
C41: Sundries
C42: Superannuation
C43: Telephone
C47: Total Expenses | D47: =SUBTOTAL(109,Expenses[Column1]) -> 0
C52: =CONCATENATE("Profit/(Loss) for the Period from ",TEXT('Main Worksheet'!$E$11+1, "dd mmm yyyy")," to ",TEXT('Main Worksheet'!$T$9, "dd mmm yyyy")) -> Profit/(Loss) for the Period from 01 Jan 2018 to 30 Jun 2018 | D52: =Income[[#Totals],[Column1]]-Expenses[[#Totals],[Column1]] -> 0
